[Event "Titled Tuesday Blitz May 30 Late 2023"]
[White "Qiao, Cindy"]
[Black "Zheng, Richard"]
[WhiteFideId "2620243"]
[BlackFideId "2624893"]
[WhiteElo "1777"]
[BlackElo "2639"]
[Result "0-1"]
[Round "02"]
[TimeControl "180+2"]
[Date "2023.05.31"]
[WhiteClock "0:00:16"]
[BlackClock "0:00:20"]

1. e4 {[%clk 0:02:59]}  c6 {[%clk 0:03:00]} 2. d4 {[%clk 0:02:59]}  d5 {[%clk 0:03:01]} 3. exd5 {[%clk 0:03:00]}  cxd5 {[%clk 0:03:00]} 4. Bd3 {[%clk 0:03:00]}  Nc6 {[%clk 0:03:00]} 5. c3 {[%clk 0:02:59]}  Qc7 {[%clk 0:03:01]} 6. Nf3 {[%clk 0:02:57]}  Bg4 {[%clk 0:03:01]} 7. Nbd2 {[%clk 0:02:55]}  e6 {[%clk 0:02:50]} 8. h3 {[%clk 0:02:55]}  Bh5 {[%clk 0:02:49]} 9. O-O {[%clk 0:02:55]}  Bd6 {[%clk 0:02:49]} 10. Re1 {[%clk 0:02:55]}  Nge7 {[%clk 0:02:48]} 11. Nf1 {[%clk 0:02:54]}  Bg6 {[%clk 0:02:36]} 12. Bg5 {[%clk 0:02:52]}  O-O {[%clk 0:02:33]} 13. Bh4 {[%clk 0:02:50]}  Bxd3 {[%clk 0:02:25]} 14. Qxd3 {[%clk 0:02:50]}  Nf5 {[%clk 0:02:26]} 15. Bg5 {[%clk 0:02:47]}  Rfe8 {[%clk 0:02:13]} 16. Ne3 {[%clk 0:02:47]}  Nce7 {[%clk 0:02:08]} 17. Bxe7 {[%clk 0:02:45]}  Nxe7 {[%clk 0:02:09]} 18. Ng4 {[%clk 0:02:44]}  Ng6 {[%clk 0:02:06]} 19. Nge5 {[%clk 0:02:39]}  Rab8 {[%clk 0:01:58]} 20. a4 {[%clk 0:02:36]}  a6 {[%clk 0:01:57]} 21. a5 {[%clk 0:02:36]}  Bxe5 {[%clk 0:01:50]} 22. Nxe5 {[%clk 0:02:34]}  Nxe5 {[%clk 0:01:48]} 23. Rxe5 {[%clk 0:02:35]}  f6 {[%clk 0:01:47]} 24. Re2 {[%clk 0:02:30]}  g6 {[%clk 0:01:40]} 25. Rae1 {[%clk 0:01:52]}  Kf7 {[%clk 0:01:36]} 26. b4 {[%clk 0:01:51]}  Rbc8 {[%clk 0:01:36]} 27. Re3 {[%clk 0:01:51]}  Qc4 {[%clk 0:01:32]} 28. Qd2 {[%clk 0:01:51]}  Rc6 {[%clk 0:01:30]} 29. Rf3 {[%clk 0:01:51]}  Kg7 {[%clk 0:01:18]} 30. Qf4 {[%clk 0:01:47]}  e5 {[%clk 0:01:09]} 31. Qg4 {[%clk 0:01:36]}  Rce6 {[%clk 0:00:54]} 32. Rfe3 {[%clk 0:01:29]}  f5 {[%clk 0:00:47]} 33. Qg5 {[%clk 0:01:25]}  e4 {[%clk 0:00:48]} 34. Rg3 {[%clk 0:01:17]}  Qc7 {[%clk 0:00:43]} 35. Qxf5 {[%clk 0:00:48]}  Qxg3 {[%clk 0:00:36]} 36. Qxe6 {[%clk 0:00:48]}  Qxf2+ {[%clk 0:00:32]} 37. Kxf2 {[%clk 0:00:49]}  Rxe6 {[%clk 0:00:32]} 38. Ke3 {[%clk 0:00:45]}  Rc6 {[%clk 0:00:32]} 39. Kd2 {[%clk 0:00:45]}  Rf6 {[%clk 0:00:31]} 40. Ke3 {[%clk 0:00:45]}  g5 {[%clk 0:00:31]} 41. Rc1 {[%clk 0:00:43]}  Rc6 {[%clk 0:00:31]} 42. c4 {[%clk 0:00:36]}  Kf6 {[%clk 0:00:23]} 43. Rf1+ {[%clk 0:00:31]}  Ke6 {[%clk 0:00:22]} 44. cxd5+ {[%clk 0:00:24]}  Kxd5 {[%clk 0:00:23]} 45. Rf5+ {[%clk 0:00:24]}  Kc4 {[%clk 0:00:24]} 46. Rc5+ {[%clk 0:00:17]}  Kxb4 {[%clk 0:00:20]} 47. Rxc6 {[%clk 0:00:16]}  bxc6 {[%clk 0:00:20]} 48. Kxe4 {[%clk 0:00:16]}  Kxa5 {[%clk 0:00:20]} 0-1


[Site "https://www.chess.com"]

[Event "Titled Tuesday Blitz May 30 Late 2023"]
[White "Zhao, Erick"]
[Black "Roberz12"]
[WhiteFideId "30946930"]
[WhiteElo "2631"]
[BlackElo "2351"]
[Result "1-0"]
[Round "02"]
[TimeControl "180+2"]
[Date "2023.05.31"]
[WhiteClock "0:02:17"]
[BlackClock "0:02:17"]

1. b3 {[%clk 0:02:56]}  f6 {[%clk 0:02:58]} 2. Bb2 {[%clk 0:02:57]}  e5 {[%clk 0:02:58]} 3. d4 {[%clk 0:02:57]}  e4 {[%clk 0:02:58]} 4. c4 {[%clk 0:02:56]}  c6 {[%clk 0:02:58]} 5. d5 {[%clk 0:02:57]}  Nh6 {[%clk 0:02:57]} 6. Nc3 {[%clk 0:02:53]}  Bb4 {[%clk 0:02:55]} 7. Qd4 {[%clk 0:02:51]}  Qe7 {[%clk 0:02:54]} 8. O-O-O {[%clk 0:02:50]}  Ng4 {[%clk 0:02:41]} 9. h3 {[%clk 0:02:44]}  Bc5 {[%clk 0:02:40]} 10. hxg4 {[%clk 0:02:22]}  Bxd4 {[%clk 0:02:40]} 11. Rxd4 {[%clk 0:02:23]}  O-O {[%clk 0:02:37]} 12. Rxe4 {[%clk 0:02:22]}  Qc5 {[%clk 0:02:34]} 13. e3 {[%clk 0:02:21]}  d6 {[%clk 0:02:33]} 14. Bd3 {[%clk 0:02:20]}  f5 {[%clk 0:02:27]} 15. Re7 {[%clk 0:02:18]}  Na6 {[%clk 0:02:19]} 16. Na4 {[%clk 0:02:17]}  Rf7 {[%clk 0:02:17]} 17. Re8+ {[%clk 0:02:17]}  Rf8 {[%clk 0:02:17]} 18. Rxf8+ {[%clk 0:02:18]}  Kxf8 {[%clk 0:02:18]} 19. Nxc5 {[%clk 0:02:19]}  Nxc5 {[%clk 0:02:18]} 20. Bxf5 {[%clk 0:02:19]}  Bxf5 {[%clk 0:02:18]} 21. gxf5 {[%clk 0:02:20]}  h6 {[%clk 0:02:18]} 22. Kc2 {[%clk 0:02:19]}  Ne4 {[%clk 0:02:18]} 23. Nh3 {[%clk 0:02:18]}  Kf7 {[%clk 0:02:18]} 24. g4 {[%clk 0:02:17]}  cxd5 {[%clk 0:02:15]} 25. f3 {[%clk 0:02:16]}  Rc8 {[%clk 0:02:16]} 26. fxe4 {[%clk 0:02:16]}  dxc4 {[%clk 0:02:17]} 27. b4 {[%clk 0:02:17]} 1-0


[Site "https://www.chess.com"]

[Event "Titled Tuesday Blitz May 30 Late 2023"]
[White "Shapiro, Daniel"]
[Black "Saveliev, Alexei"]
[WhiteFideId "2001780"]
[BlackFideId "24128546"]
[WhiteElo "2350"]
[BlackElo "2271"]
[Result "1/2-1/2"]
[Round "02"]
[TimeControl "180+2"]
[Date "2023.05.31"]
[WhiteClock "0:00:08"]
[BlackClock "0:00:08"]

1. d4 {[%clk 0:03:00]}  g6 {[%clk 0:03:00]} 2. e4 {[%clk 0:03:00]}  Bg7 {[%clk 0:03:00]} 3. Nc3 {[%clk 0:03:00]}  d6 {[%clk 0:02:56]} 4. h3 {[%clk 0:03:00]}  Nc6 {[%clk 0:02:56]} 5. Nge2 {[%clk 0:02:57]}  e5 {[%clk 0:02:56]} 6. Be3 {[%clk 0:02:57]}  f5 {[%clk 0:02:55]} 7. g3 {[%clk 0:02:45]}  Nf6 {[%clk 0:02:53]} 8. Bg2 {[%clk 0:02:45]}  O-O {[%clk 0:02:52]} 9. Qd2 {[%clk 0:02:45]}  fxe4 {[%clk 0:02:40]} 10. Nxe4 {[%clk 0:02:38]}  Nxe4 {[%clk 0:02:32]} 11. Bxe4 {[%clk 0:02:38]}  Bf5 {[%clk 0:02:32]} 12. Bxf5 {[%clk 0:02:17]}  Rxf5 {[%clk 0:02:33]} 13. O-O-O {[%clk 0:02:10]}  Qd7 {[%clk 0:02:18]} 14. f4 {[%clk 0:02:06]}  exf4 {[%clk 0:02:06]} 15. Bxf4 {[%clk 0:02:04]}  Re8 {[%clk 0:01:59]} 16. c3 {[%clk 0:01:48]}  Qf7 {[%clk 0:01:51]} 17. Kb1 {[%clk 0:01:39]}  b5 {[%clk 0:01:50]} 18. Nc1 {[%clk 0:01:16]}  b4 {[%clk 0:01:43]} 19. Qg2 {[%clk 0:00:36]}  d5 {[%clk 0:01:11]} 20. Rhe1 {[%clk 0:00:35]}  bxc3 {[%clk 0:01:08]} 21. bxc3 {[%clk 0:00:34]}  Na5 {[%clk 0:00:55]} 22. Nb3 {[%clk 0:00:30]}  Nc4 {[%clk 0:00:51]} 23. Rxe8+ {[%clk 0:00:24]}  Qxe8 {[%clk 0:00:51]} 24. Bxc7 {[%clk 0:00:24]}  Ne3 {[%clk 0:00:40]} 25. Re1 {[%clk 0:00:18]}  Bh6 {[%clk 0:00:31]} 26. Bf4 {[%clk 0:00:14]}  Bxf4 {[%clk 0:00:27]} 27. gxf4 {[%clk 0:00:14]}  Nxg2 {[%clk 0:00:23]} 28. Rxe8+ {[%clk 0:00:13]}  Kf7 {[%clk 0:00:24]} 29. Ra8 {[%clk 0:00:12]}  Nxf4 {[%clk 0:00:20]} 30. Rxa7+ {[%clk 0:00:12]}  Kg8 {[%clk 0:00:21]} 31. a4 {[%clk 0:00:11]}  Nxh3 {[%clk 0:00:21]} 32. a5 {[%clk 0:00:11]}  g5 {[%clk 0:00:22]} 33. a6 {[%clk 0:00:12]}  Rf6 {[%clk 0:00:18]} 34. Nc5 {[%clk 0:00:11]}  g4 {[%clk 0:00:18]} 35. Rb7 {[%clk 0:00:11]}  Rxa6 {[%clk 0:00:10]} 36. Nxa6 {[%clk 0:00:11]}  g3 {[%clk 0:00:11]} 37. Kc2 {[%clk 0:00:11]}  g2 {[%clk 0:00:11]} 38. Rb1 {[%clk 0:00:11]}  g1=Q {[%clk 0:00:11]} 39. Rxg1+ {[%clk 0:00:12]}  Nxg1 {[%clk 0:00:12]} 40. Kd3 {[%clk 0:00:12]}  Kf7 {[%clk 0:00:11]} 41. Nc5 {[%clk 0:00:12]}  h5 {[%clk 0:00:09]} 42. Nb3 {[%clk 0:00:12]}  Nf3 {[%clk 0:00:07]} 43. Ke3 {[%clk 0:00:11]}  Ng5 {[%clk 0:00:05]} 44. Kf4 {[%clk 0:00:10]}  Kf6 {[%clk 0:00:06]} 45. Nd2 {[%clk 0:00:09]}  Ne6+ {[%clk 0:00:06]} 46. Kf3 {[%clk 0:00:08]}  Kg5 {[%clk 0:00:06]} 47. Kg3 {[%clk 0:00:06]}  h4+ {[%clk 0:00:06]} 48. Kf3 {[%clk 0:00:06]}  Kf5 {[%clk 0:00:05]} 49. Kg2 {[%clk 0:00:04]}  Kg4 {[%clk 0:00:04]} 50. c4 {[%clk 0:00:03]}  dxc4 {[%clk 0:00:02]} 51. Nxc4 {[%clk 0:00:03]}  Nxd4 {[%clk 0:00:01]} 52. Ne5+ {[%clk 0:00:04]}  Kf5 {[%clk 0:00:01]} 53. Nf3 {[%clk 0:00:04]}  Nxf3 {[%clk 0:00:02]} 54. Kxf3 {[%clk 0:00:04]}  Kg5 {[%clk 0:00:03]} 55. Kg2 {[%clk 0:00:04]}  Kg4 {[%clk 0:00:04]} 56. Kh1 {[%clk 0:00:05]}  h3 {[%clk 0:00:04]} 57. Kg1 {[%clk 0:00:06]}  Kh4 {[%clk 0:00:05]} 58. Kh1 {[%clk 0:00:07]}  Kg3 {[%clk 0:00:06]} 59. Kg1 {[%clk 0:00:07]}  h2+ {[%clk 0:00:07]} 60. Kh1 {[%clk 0:00:08]}  Kh3 {[%clk 0:00:08]} 1/2-1/2


[Site "https://www.chess.com"]

[Event "Titled Tuesday Blitz May 30 Late 2023"]
[White "Padalka, Artem"]
[Black "Do Valle Cardoso, Lucas"]
[WhiteFideId "14118637"]
[BlackFideId "2163144"]
[WhiteElo "2073"]
[BlackElo "2372"]
[Result "0-1"]
[Round "02"]
[TimeControl "180+2"]
[Date "2023.05.31"]
[WhiteClock "0:00:46"]
[BlackClock "0:00:33"]

1. Nf3 {[%clk 0:03:00]}  d5 {[%clk 0:02:59]} 2. c4 {[%clk 0:03:01]}  d4 {[%clk 0:03:00]} 3. g3 {[%clk 0:03:02]}  g6 {[%clk 0:02:56]} 4. Bg2 {[%clk 0:03:02]}  Bg7 {[%clk 0:02:56]} 5. O-O {[%clk 0:03:02]}  Nf6 {[%clk 0:02:57]} 6. d3 {[%clk 0:03:00]}  O-O {[%clk 0:02:57]} 7. b4 {[%clk 0:02:59]}  c5 {[%clk 0:02:53]} 8. b5 {[%clk 0:02:58]}  a6 {[%clk 0:02:52]} 9. a4 {[%clk 0:02:45]}  Nbd7 {[%clk 0:02:45]} 10. Bb2 {[%clk 0:02:43]}  e5 {[%clk 0:02:43]} 11. e3 {[%clk 0:02:43]}  Ne8 {[%clk 0:02:23]} 12. Nbd2 {[%clk 0:02:41]}  Nd6 {[%clk 0:02:23]} 13. exd4 {[%clk 0:02:32]}  exd4 {[%clk 0:02:12]} 14. Re1 {[%clk 0:02:32]}  Rb8 {[%clk 0:01:41]} 15. Nb3 {[%clk 0:02:31]}  b6 {[%clk 0:01:40]} 16. Nfd2 {[%clk 0:02:23]}  a5 {[%clk 0:01:38]} 17. Ne4 {[%clk 0:02:19]}  Nxe4 {[%clk 0:01:38]} 18. Bxe4 {[%clk 0:02:19]}  Nf6 {[%clk 0:01:34]} 19. Bg2 {[%clk 0:02:17]}  Bb7 {[%clk 0:01:34]} 20. Bxb7 {[%clk 0:02:16]}  Rxb7 {[%clk 0:01:35]} 21. Qf3 {[%clk 0:02:16]}  Re7 {[%clk 0:01:33]} 22. Kf1 {[%clk 0:02:10]}  Rfe8 {[%clk 0:01:26]} 23. Rxe7 {[%clk 0:02:10]}  Qxe7 {[%clk 0:01:25]} 24. Rd1 {[%clk 0:02:05]}  h5 {[%clk 0:01:24]} 25. Bc1 {[%clk 0:02:00]}  Qe6 {[%clk 0:01:20]} 26. Kg2 {[%clk 0:01:59]}  Qe2 {[%clk 0:01:17]} 27. Rd2 {[%clk 0:01:38]}  Qe1 {[%clk 0:01:12]} 28. Qc6 {[%clk 0:01:35]}  Re6 {[%clk 0:01:11]} 29. Qc7 {[%clk 0:01:23]}  Bh6 {[%clk 0:01:04]} 30. Nxc5 {[%clk 0:01:16]}  bxc5 {[%clk 0:00:55]} 31. b6 {[%clk 0:01:09]}  Bxd2 {[%clk 0:00:50]} 32. b7 {[%clk 0:01:06]}  Re8 {[%clk 0:00:43]} 33. b8=Q {[%clk 0:01:06]}  Rxb8 {[%clk 0:00:42]} 34. Qxb8+ {[%clk 0:01:07]}  Kg7 {[%clk 0:00:42]} 35. Ba3 {[%clk 0:01:03]}  Ng4 {[%clk 0:00:36]} 36. Kf3 {[%clk 0:00:46]}  Qxf2+ {[%clk 0:00:33]} 37. Ke4 {[%clk 0:00:46]}  Qf5# {[%clk 0:00:33]} 0-1


[Site "https://www.chess.com"]

[Event "Titled Tuesday Blitz May 30 Late 2023"]
[White "Atanasov, Radislav"]
[Black "Filipascu"]
[WhiteFideId "2901471"]
[WhiteElo "2077"]
[BlackElo "2625"]
[Result "1-0"]
[Round "02"]
[TimeControl "180+2"]
[Date "2023.05.31"]
[WhiteClock "0:02:01"]
[BlackClock "0:01:23"]

1. e4 {[%clk 0:03:00]}  c5 {[%clk 0:02:59]} 2. c3 {[%clk 0:02:58]}  Nf6 {[%clk 0:02:59]} 3. e5 {[%clk 0:02:58]}  Nd5 {[%clk 0:02:59]} 4. d4 {[%clk 0:02:59]}  cxd4 {[%clk 0:03:00]} 5. Nf3 {[%clk 0:02:59]}  Nc6 {[%clk 0:03:01]} 6. cxd4 {[%clk 0:02:58]}  d6 {[%clk 0:03:00]} 7. Bc4 {[%clk 0:02:58]}  e6 {[%clk 0:02:59]} 8. O-O {[%clk 0:02:57]}  Be7 {[%clk 0:02:59]} 9. Re1 {[%clk 0:02:57]}  O-O {[%clk 0:02:59]} 10. Qe2 {[%clk 0:02:58]}  Nb6 {[%clk 0:02:55]} 11. Bd3 {[%clk 0:02:57]}  Nb4 {[%clk 0:02:52]} 12. Be4 {[%clk 0:02:57]}  d5 {[%clk 0:02:52]} 13. Bd3 {[%clk 0:02:39]}  Nxd3 {[%clk 0:02:07]} 14. Qxd3 {[%clk 0:02:38]}  Bd7 {[%clk 0:02:07]} 15. Nc3 {[%clk 0:02:38]}  Rc8 {[%clk 0:02:06]} 16. h4 {[%clk 0:02:35]}  Na4 {[%clk 0:01:57]} 17. Ne2 {[%clk 0:02:24]}  Qb6 {[%clk 0:01:54]} 18. Ng5 {[%clk 0:02:22]}  Bxg5 {[%clk 0:01:51]} 19. hxg5 {[%clk 0:02:20]}  Bb5 {[%clk 0:01:23]} 20. Qe3 {[%clk 0:02:01]} 1-0


[Site "https://www.chess.com"]

[Event "Titled Tuesday Blitz May 30 Late 2023"]
[White "Haydon, David L"]
[Black "Sailer, Mike"]
[WhiteFideId "415405"]
[BlackFideId "2012901"]
[WhiteElo "2326"]
[BlackElo "2109"]
[Result "1/2-1/2"]
[Round "02"]
[TimeControl "180+2"]
[Date "2023.05.31"]
[WhiteClock "0:01:22"]
[BlackClock "0:00:06"]

1. d4 {[%clk 0:03:00]}  d5 {[%clk 0:02:58]} 2. Nf3 {[%clk 0:03:00]}  Bf5 {[%clk 0:02:59]} 3. c4 {[%clk 0:03:00]}  e6 {[%clk 0:02:57]} 4. g3 {[%clk 0:03:00]}  Nf6 {[%clk 0:02:57]} 5. Bg2 {[%clk 0:03:00]}  Be7 {[%clk 0:02:57]} 6. O-O {[%clk 0:03:00]}  O-O {[%clk 0:02:57]} 7. Nc3 {[%clk 0:03:00]}  c6 {[%clk 0:02:56]} 8. b3 {[%clk 0:03:00]}  Nbd7 {[%clk 0:02:56]} 9. Bb2 {[%clk 0:02:59]}  h6 {[%clk 0:02:55]} 10. a3 {[%clk 0:02:57]}  Ne4 {[%clk 0:02:54]} 11. Qc1 {[%clk 0:02:55]}  Nxc3 {[%clk 0:02:53]} 12. Bxc3 {[%clk 0:02:54]}  Be4 {[%clk 0:02:53]} 13. Qb2 {[%clk 0:02:53]}  a6 {[%clk 0:02:44]} 14. Rfd1 {[%clk 0:02:53]}  b5 {[%clk 0:02:43]} 15. cxd5 {[%clk 0:02:53]}  cxd5 {[%clk 0:02:41]} 16. Rac1 {[%clk 0:02:51]}  Rc8 {[%clk 0:02:37]} 17. Ne5 {[%clk 0:02:48]}  Bxg2 {[%clk 0:02:34]} 18. Kxg2 {[%clk 0:02:45]}  Nxe5 {[%clk 0:02:32]} 19. dxe5 {[%clk 0:02:45]}  Bc5 {[%clk 0:02:16]} 20. Bb4 {[%clk 0:02:39]}  Bxb4 {[%clk 0:02:11]} 21. axb4 {[%clk 0:02:38]}  Qb6 {[%clk 0:02:07]} 22. Qd2 {[%clk 0:02:32]}  Qb7 {[%clk 0:01:59]} 23. Qd4 {[%clk 0:02:29]}  Rxc1 {[%clk 0:01:57]} 24. Rxc1 {[%clk 0:02:29]}  Rc8 {[%clk 0:01:56]} 25. Rc5 {[%clk 0:02:23]}  Rxc5 {[%clk 0:01:56]} 26. bxc5 {[%clk 0:02:23]}  a5 {[%clk 0:01:50]} 27. f3 {[%clk 0:02:15]}  Qc6 {[%clk 0:01:48]} 28. Qc3 {[%clk 0:02:11]}  a4 {[%clk 0:01:21]} 29. bxa4 {[%clk 0:02:10]}  bxa4 {[%clk 0:01:20]} 30. Kf2 {[%clk 0:02:06]}  g6 {[%clk 0:01:17]} 31. Qb4 {[%clk 0:02:02]}  Kg7 {[%clk 0:01:14]} 32. Ke3 {[%clk 0:01:54]}  Qa6 {[%clk 0:01:02]} 33. Qb6 {[%clk 0:01:53]}  Qxb6 {[%clk 0:00:44]} 34. cxb6 {[%clk 0:01:53]}  a3 {[%clk 0:00:45]} 35. b7 {[%clk 0:01:53]}  a2 {[%clk 0:00:44]} 36. b8=Q {[%clk 0:01:53]}  a1=Q {[%clk 0:00:42]} 37. Kf2 {[%clk 0:01:52]}  Qd4+ {[%clk 0:00:41]} 38. Kg2 {[%clk 0:01:52]}  Qe3 {[%clk 0:00:35]} 39. Qb2 {[%clk 0:01:50]}  d4 {[%clk 0:00:32]} 40. f4 {[%clk 0:01:50]}  Qe4+ {[%clk 0:00:27]} 41. Kg1 {[%clk 0:01:49]}  Qe3+ {[%clk 0:00:27]} 42. Kg2 {[%clk 0:01:49]}  Qe4+ {[%clk 0:00:27]} 43. Kf2 {[%clk 0:01:47]}  Qe3+ {[%clk 0:00:25]} 44. Kf1 {[%clk 0:01:45]}  d3 {[%clk 0:00:22]} 45. exd3 {[%clk 0:01:43]}  Qxd3+ {[%clk 0:00:22]} 46. Qe2 {[%clk 0:01:44]}  Qb1+ {[%clk 0:00:20]} 47. Kg2 {[%clk 0:01:44]}  Qb7+ {[%clk 0:00:19]} 48. Qf3 {[%clk 0:01:43]}  Qb2+ {[%clk 0:00:17]} 49. Kh3 {[%clk 0:01:43]}  Qc2 {[%clk 0:00:13]} 50. Qg4 {[%clk 0:01:38]}  Qd3 {[%clk 0:00:08]} 51. Qh4 {[%clk 0:01:21]}  Qf1+ {[%clk 0:00:08]} 52. Kg4 {[%clk 0:01:21]}  Qe2+ {[%clk 0:00:09]} 53. Kh3 {[%clk 0:01:21]}  Qf1+ {[%clk 0:00:08]} 54. Kg4 {[%clk 0:01:21]}  Qe2+ {[%clk 0:00:08]} 55. Kh3 {[%clk 0:01:22]}  Qf1+ {[%clk 0:00:06]} 1/2-1/2


[Site "https://www.chess.com"]

[Event "Titled Tuesday Blitz May 30 Late 2023"]
[White "Djordjevic, Dejan N"]
[Black "Bazeev, German"]
[WhiteFideId "913316"]
[BlackFideId "24119350"]
[WhiteElo "2261"]
[BlackElo "2466"]
[Result "0-1"]
[Round "02"]
[TimeControl "180+2"]
[Date "2023.05.31"]
[WhiteClock "0:00:53"]
[BlackClock "0:02:03"]

1. e4 {[%clk 0:03:00]}  c5 {[%clk 0:02:59]} 2. Nc3 {[%clk 0:03:00]}  Nc6 {[%clk 0:02:59]} 3. g3 {[%clk 0:03:00]}  h5 {[%clk 0:02:59]} 4. h3 {[%clk 0:02:59]}  h4 {[%clk 0:02:58]} 5. g4 {[%clk 0:02:59]}  e6 {[%clk 0:02:59]} 6. Bg2 {[%clk 0:02:59]}  Nge7 {[%clk 0:03:00]} 7. f4 {[%clk 0:02:59]}  d5 {[%clk 0:03:00]} 8. d3 {[%clk 0:02:43]}  d4 {[%clk 0:03:00]} 9. Nce2 {[%clk 0:02:42]}  g5 {[%clk 0:02:59]} 10. fxg5 {[%clk 0:02:36]}  Ng6 {[%clk 0:03:00]} 11. Nf3 {[%clk 0:02:35]}  Bd6 {[%clk 0:03:01]} 12. c3 {[%clk 0:02:30]}  e5 {[%clk 0:02:59]} 13. O-O {[%clk 0:02:25]}  Be6 {[%clk 0:02:57]} 14. c4 {[%clk 0:02:24]}  a6 {[%clk 0:02:57]} 15. a3 {[%clk 0:02:21]}  b5 {[%clk 0:02:57]} 16. b3 {[%clk 0:02:21]}  Rb8 {[%clk 0:02:56]} 17. Qc2 {[%clk 0:02:04]}  bxc4 {[%clk 0:02:47]} 18. bxc4 {[%clk 0:02:03]}  Qb6 {[%clk 0:02:48]} 19. Nd2 {[%clk 0:01:57]}  Ke7 {[%clk 0:02:42]} 20. Rf6 {[%clk 0:01:44]}  Qa5 {[%clk 0:02:31]} 21. Rb1 {[%clk 0:01:41]}  Rxb1 {[%clk 0:02:30]} 22. Qxb1 {[%clk 0:01:41]}  Rb8 {[%clk 0:02:27]} 23. Qc2 {[%clk 0:01:40]}  Rb7 {[%clk 0:02:17]} 24. Bf1 {[%clk 0:01:38]}  Nb8 {[%clk 0:02:15]} 25. Kh2 {[%clk 0:01:30]}  Nd7 {[%clk 0:02:10]} 26. Rf2 {[%clk 0:01:24]}  Nb6 {[%clk 0:02:11]} 27. Rf6 {[%clk 0:01:21]}  Qa4 {[%clk 0:02:09]} 28. Qxa4 {[%clk 0:01:14]}  Nxa4 {[%clk 0:02:09]} 29. Ng1 {[%clk 0:01:10]}  Nc3 {[%clk 0:02:07]} 30. Ngf3 {[%clk 0:01:06]}  Na2 {[%clk 0:02:07]} 31. Rxg6 {[%clk 0:00:59]}  fxg6 {[%clk 0:02:07]} 32. Nxh4 {[%clk 0:00:59]}  Kf7 {[%clk 0:02:07]} 33. Nf5 {[%clk 0:00:53]}  Bf8 {[%clk 0:02:03]} 0-1


[Site "https://www.chess.com"]

[Event "Titled Tuesday Blitz May 30 Late 2023"]
[White "Pakleza, Zbigniew"]
[Black "MariusBieliauskas"]
[WhiteFideId "1119290"]
[WhiteElo "2410"]
[BlackElo "2464"]
[Result "1-0"]
[Round "02"]
[TimeControl "180+2"]
[Date "2023.05.31"]
[WhiteClock "0:00:07"]
[BlackClock "0:00:03"]

1. d4 {[%clk 0:02:51]}  Nf6 {[%clk 0:02:58]} 2. Nf3 {[%clk 0:02:51]}  e6 {[%clk 0:02:58]} 3. Bf4 {[%clk 0:02:51]}  c5 {[%clk 0:02:58]} 4. c3 {[%clk 0:02:51]}  b6 {[%clk 0:02:58]} 5. e3 {[%clk 0:02:51]}  cxd4 {[%clk 0:02:57]} 6. cxd4 {[%clk 0:02:50]}  Be7 {[%clk 0:02:56]} 7. Nc3 {[%clk 0:02:51]}  O-O {[%clk 0:02:56]} 8. h3 {[%clk 0:02:49]}  Bb7 {[%clk 0:02:52]} 9. Bd3 {[%clk 0:02:48]}  d6 {[%clk 0:02:51]} 10. O-O {[%clk 0:02:47]}  Nbd7 {[%clk 0:02:52]} 11. Qe2 {[%clk 0:02:44]}  Re8 {[%clk 0:02:49]} 12. Bh2 {[%clk 0:02:44]}  a6 {[%clk 0:02:47]} 13. e4 {[%clk 0:02:42]}  Nf8 {[%clk 0:02:42]} 14. e5 {[%clk 0:02:21]}  dxe5 {[%clk 0:02:26]} 15. dxe5 {[%clk 0:02:20]}  Nd5 {[%clk 0:02:25]} 16. Rad1 {[%clk 0:02:16]}  Nxc3 {[%clk 0:02:20]} 17. bxc3 {[%clk 0:02:08]}  Qc7 {[%clk 0:02:18]} 18. c4 {[%clk 0:01:51]}  Rad8 {[%clk 0:02:07]} 19. Be4 {[%clk 0:01:32]}  Rd7 {[%clk 0:02:00]} 20. Bxb7 {[%clk 0:01:17]}  Qxb7 {[%clk 0:01:59]} 21. h4 {[%clk 0:01:05]}  Red8 {[%clk 0:01:57]} 22. Rb1 {[%clk 0:00:58]}  Qc6 {[%clk 0:01:51]} 23. h5 {[%clk 0:00:48]}  h6 {[%clk 0:01:51]} 24. Bf4 {[%clk 0:00:47]}  Rd3 {[%clk 0:01:38]} 25. Rb3 {[%clk 0:00:32]}  Qxc4 {[%clk 0:01:14]} 26. Be3 {[%clk 0:00:11]}  b5 {[%clk 0:01:07]} 27. Rc1 {[%clk 0:00:08]}  Qd5 {[%clk 0:01:02]} 28. Rxd3 {[%clk 0:00:08]}  Qxd3 {[%clk 0:01:01]} 29. Qxd3 {[%clk 0:00:09]}  Rxd3 {[%clk 0:01:01]} 30. Rc6 {[%clk 0:00:10]}  Ra3 {[%clk 0:00:56]} 31. Rc7 {[%clk 0:00:08]}  Bb4 {[%clk 0:00:50]} 32. Nd4 {[%clk 0:00:09]}  Rxa2 {[%clk 0:00:48]} 33. Nc6 {[%clk 0:00:09]}  a5 {[%clk 0:00:46]} 34. Rc8 {[%clk 0:00:04]}  Ba3 {[%clk 0:00:34]} 35. Nxa5 {[%clk 0:00:03]}  b4 {[%clk 0:00:24]} 36. Rb8 {[%clk 0:00:02]}  Ra1+ {[%clk 0:00:21]} 37. Kh2 {[%clk 0:00:02]}  Rd1 {[%clk 0:00:20]} 38. Nc6 {[%clk 0:00:02]}  Rd7 {[%clk 0:00:19]} 39. Bc5 {[%clk 0:00:02]}  Kh7 {[%clk 0:00:10]} 40. Bxf8 {[%clk 0:00:02]}  Rd5 {[%clk 0:00:09]} 41. Nxb4 {[%clk 0:00:03]}  Rxe5 {[%clk 0:00:09]} 42. Ra8 {[%clk 0:00:03]}  Bxb4 {[%clk 0:00:09]} 43. Bxb4 {[%clk 0:00:04]}  Rxh5+ {[%clk 0:00:09]} 44. Kg1 {[%clk 0:00:04]}  Rb5 {[%clk 0:00:10]} 45. Ra4 {[%clk 0:00:04]}  h5 {[%clk 0:00:10]} 46. g3 {[%clk 0:00:04]}  g5 {[%clk 0:00:09]} 47. Kg2 {[%clk 0:00:05]}  Kg6 {[%clk 0:00:10]} 48. Bd2 {[%clk 0:00:05]}  g4 {[%clk 0:00:10]} 49. Ra5 {[%clk 0:00:03]}  Rb2 {[%clk 0:00:09]} 50. Be3 {[%clk 0:00:02]}  Rc2 {[%clk 0:00:09]} 51. Rg5+ {[%clk 0:00:01]}  Kf6 {[%clk 0:00:08]} 52. Rxh5 {[%clk 0:00:02]}  Ra2 {[%clk 0:00:08]} 53. Rg5 {[%clk 0:00:02]}  Ra4 {[%clk 0:00:08]} 54. Rh5 {[%clk 0:00:03]}  Rc4 {[%clk 0:00:08]} 55. Rh6+ {[%clk 0:00:03]}  Kf5 {[%clk 0:00:08]} 56. Rh1 {[%clk 0:00:04]}  f6 {[%clk 0:00:08]} 57. Rh5+ {[%clk 0:00:04]}  Kg6 {[%clk 0:00:08]} 58. Rh6+ {[%clk 0:00:05]}  Kf5 {[%clk 0:00:08]} 59. Rh8 {[%clk 0:00:05]}  Ra4 {[%clk 0:00:07]} 60. Rg8 {[%clk 0:00:05]}  Rc4 {[%clk 0:00:07]} 61. Rf8 {[%clk 0:00:05]}  Kg6 {[%clk 0:00:07]} 62. Re8 {[%clk 0:00:05]}  Rc6 {[%clk 0:00:06]} 63. Rb8 {[%clk 0:00:05]}  f5 {[%clk 0:00:06]} 64. Rb6 {[%clk 0:00:06]}  Rxb6 {[%clk 0:00:04]} 65. Bxb6 {[%clk 0:00:07]}  e5 {[%clk 0:00:05]} 66. Ba5 {[%clk 0:00:06]}  f4 {[%clk 0:00:05]} 67. Bc3 {[%clk 0:00:07]}  Kf5 {[%clk 0:00:04]} 68. Bd2 {[%clk 0:00:07]}  f3+ {[%clk 0:00:03]} 69. Kf1 {[%clk 0:00:07]}  Ke4 {[%clk 0:00:03]} 70. Ke1 {[%clk 0:00:07]}  Kd3 {[%clk 0:00:04]} 71. Be3 {[%clk 0:00:07]}  e4 {[%clk 0:00:04]} 72. Kd1 {[%clk 0:00:06]}  Kc3 {[%clk 0:00:03]} 73. Bf4 {[%clk 0:00:07]}  Kd3 {[%clk 0:00:03]} 74. Bd2 {[%clk 0:00:07]} 1-0


[Site "https://www.chess.com"]